fUST/lending_fUST_20250115
["ID","MTS","AMOUNT","RATE_DAILY","PERIOD"]
[348979180,1736911867641,-500.0,0.0002041,3]
[348979181,1736911867651,-500.0,0.0002041,3]
[348979182,1736911867661,-543.11591004,0.0002041,3]
[348979183,1736911867671,-5112.05,0.0002041,2]
[348979184,1736911867681,-500.0,0.0002041,2]
[348979185,1736911867691,-510.71086473,0.0002041,3]
[348979186,1736911867701,-952.49,0.0002041,3]
[348979187,1736911867711,-2810.49,0.0002041,3]
[348979188,1736911867721,-500.0,0.0002041,3]
[348979189,1736911867730,-915.47,0.0002041,3]
[348979190,1736911867740,-500.0,0.0002041,3]
[348979191,1736911867749,-1246.12,0.0002041,3]
[348979192,1736911867759,-4762.08,0.0002041,3]
[348979193,1736911867769,-648.65,0.0002041,3]
[348979194,1736911867779,-1674.79,0.0002041,3]
[348979195,1736911867789,-894.14,0.0002041,3]
[348979196,1736911867799,-933.53,0.0002041,3]
[348979197,1736911867810,-500.0,0.0002041,3]
[348979198,1736911867820,-825.71,0.0002041,3]
[348979199,1736911867830,-500.0,0.0002041,3]
[348979200,1736911867840,-532.59,0.0002041,3]
[348979201,1736911867849,-528.20668792,0.0002041,3]
[348979202,1736911867860,-500.0,0.0002041,3]
[348979203,1736911867870,-500.0,0.0002041,3]
[348979204,1736911867879,-1865.7,0.0002041,3]
[348979205,1736911867889,-1673.6,0.0002041,3]
[348979206,1736911867899,-500.0,0.0002041,3]
[348979207,1736911867910,-1832.83,0.0002041,3]
[348979208,1736911867920,-500.0,0.0002041,3]
[348979209,1736911867929,-500.0,0.0002041,3]
[348979210,1736911867939,-868.23,0.0002041,3]
[348979211,1736911867949,-725.7,0.0002041,3]
[348979212,1736911867958,-740.31,0.0002041,3]
[348979213,1736911867967,-18061.88,0.0002041,3]
[348979214,1736911867977,-500.0,0.0002041,3]
[348979215,1736911867987,-952.47,0.0002041,3]
[348979216,1736911867997,-1308.88,0.0002041,3]
[348979217,1736911868008,-790.1,0.0002041,3]
[348979218,1736911868019,-182.6001926,0.0002041,3]
[348979219,1736911868029,-752.83,0.0002041,3]
[348979220,1736911868039,-543.94,0.0002041,3]
[348979221,1736911868049,-630.98,0.0002041,3]
[348979222,1736911868061,-153.0,0.00020414,2]
[348979223,1736911868071,-153.0,0.00020414,2]
[348979224,1736911868080,-153.0,0.00020414,2]
[348979225,1736911868090,-153.0,0.00020414,2]
[348979226,1736911868099,-153.0,0.00020414,2]
[348979227,1736911868109,-153.0,0.00020414,2]
[348979228,1736911868118,-153.0,0.00020414,2]
[348979229,1736911868128,-276.0,0.00020414,2]
[348979230,1736911868138,-214.9766468,0.00020438,2]
[348979231,1736911868147,-214.9766468,0.00020438,2]
[348979232,1736911868157,-153.0,0.00020438,2]
[348979233,1736911868167,-153.0,0.00020438,2]
[348979234,1736911868177,-153.0,0.00020438,2]
[348979235,1736911868187,-153.0,0.00020438,2]
[348979236,1736911868197,-153.0,0.00020438,2]
[348979237,1736911868207,-157.0445543,0.00020438,2]
[348979238,1736911868216,-400.0,0.00020447,2]
[348979239,1736911868227,-620.0,0.000205,2]
[348979240,1736911868236,-379.6607994,0.00020521,2]
[348979241,1736911868246,-503.33931192,0.00020521,2]
[348979242,1736911868256,-1000.0,0.00020521,2]
[348979243,1736911868266,-1000.0,0.00020521,2]
[348979244,1736911868276,-151.0,0.00020524,2]
[348979245,1736911868286,-281.02569611,0.00020537,3]
[348979246,1736911869486,-538.18495533,0.00019171,2]
[348979247,1736911869498,-503.35656727,0.00019171,2]
[348979248,1736911869509,-500.0,0.00019171,2]
[348979249,1736911869518,-500.0,0.00019171,2]
[348979250,1736911869528,-500.0,0.00019171,2]
[348979251,1736911869538,-500.0,0.00019171,2]
[348979252,1736911869547,-500.0,0.00019171,2]
[348979253,1736911869559,-500.0,0.00019171,2]
[348979254,1736911869568,-500.0,0.00019171,2]
[348979255,1736911869577,-406.52500753,0.00019171,2]
[348979256,1736911869586,-500.0,0.00019171,2]
[348979257,1736911869596,-500.0,0.00019171,2]
[348979258,1736911869605,-265.80715807,0.00019171,2]
[348979259,1736911869615,-25.69017652,0.00019171,2]
[348979260,1736911869626,-474.30982348,0.00019171,2]
[348979261,1736911869636,-500.0,0.00019171,2]
[348979262,1736911869645,-500.0,0.00019171,2]
[348979263,1736911869654,-500.0,0.00019171,2]
[348979264,1736911869664,-500.0,0.00019171,2]
[348979265,1736911869673,-500.0,0.00019171,2]
[348979266,1736911869683,-500.0,0.00019171,2]
[348979267,1736911869692,-500.0,0.00019171,2]
[348979268,1736911869701,-500.0,0.00019171,2]
[348979269,1736911869711,-500.0,0.00019171,2]
[348979270,1736911869720,-500.0,0.00019171,2]
[348979271,1736911869730,-500.0,0.00019171,2]
[348979272,1736911869740,-500.0,0.00019171,2]
[348979273,1736911869751,-361.79992485,0.00019171,2]
[348979274,1736911869760,-500.0,0.00019171,2]
[348979275,1736911869770,-500.0,0.00019171,2]
[348979276,1736911869780,-500.0,0.00019171,2]
[348979277,1736911869789,-500.0,0.00019171,2]
[348979278,1736911869799,-500.0,0.00019171,2]
[348979279,1736911869813,-500.0,0.00019171,2]
[348979280,1736911869823,-500.0,0.00019171,2]
[348979281,1736911869832,-500.0,0.00019171,2]
[348979282,1736911869842,-500.0,0.00019171,2]
[348979283,1736911869851,-393.16347848,0.00019171,2]
[348979284,1736911869862,-500.0,0.00019171,2]
[348979285,1736911869872,-500.0,0.00019171,2]
[348979286,1736911869882,-375.71615537,0.00019171,2]
[348979287,1736911869892,-500.0,0.00019171,2]
[348979288,1736911869902,-500.0,0.00019171,2]
[348979289,1736911869912,-500.0,0.00019171,2]
[348979290,1736911869922,-500.0,0.00019171,2]
[348979291,1736911869932,-500.0,0.00019171,2]
[348979292,1736911869942,-500.0,0.00019171,2]
[348979293,1736911869951,-500.0,0.00019171,2]
[348979294,1736911869961,-500.0,0.00019171,2]
[348979295,1736911869971,-500.0,0.00019171,2]
[348979296,1736911869981,-500.0,0.00019171,2]
[348979297,1736911869991,-500.0,0.00019171,2]
[348979298,1736911869999,-500.0,0.00019171,2]
[348979299,1736911870009,-500.0,0.00019171,2]
[348979300,1736911870018,-256.31989993,0.00019171,2]
[348979301,1736911870028,-500.0,0.00019171,2]
[348979302,1736911870038,-500.0,0.00019171,2]
[348979303,1736911870047,-500.0,0.00019171,2]
[348979304,1736911870061,-500.0,0.00019171,2]
[348979305,1736911870070,-500.0,0.00019171,2]
[348979306,1736911870079,-500.0,0.00019171,2]
[348979307,1736911870089,-500.0,0.00019171,2]
[348979308,1736911870099,-500.0,0.00019171,2]
[348979309,1736911870109,-552.38928778,0.00019171,2]
[348979310,1736911870119,-500.0,0.00019171,2]
[348979311,1736911870129,-500.0,0.00019171,2]
[348979312,1736911870139,-500.0,0.00019171,2]
[348979313,1736911870149,-500.0,0.00019171,2]
[348979314,1736911870158,-500.0,0.00019171,2]
[348979315,1736911870167,-500.0,0.00019171,2]
[348979316,1736911870177,-500.0,0.00019171,2]
[348979317,1736911870187,-500.0,0.00019171,2]
[348979318,1736911870197,-500.0,0.00019171,2]
[348979319,1736911870206,-500.0,0.00019171,2]
[348979320,1736911870215,-500.0,0.00019171,2]
[348979321,1736911870225,-500.0,0.00019171,2]
[348979322,1736911870234,-500.0,0.00019171,2]
[348979323,1736911870243,-500.0,0.00019171,2]
[348979324,1736911870252,-500.0,0.00019171,2]
[348979325,1736911870262,-500.0,0.00019171,2]
[348979326,1736911870271,-500.0,0.00019171,2]
[348979327,1736911870281,-500.0,0.00019171,2]
[348979328,1736911870290,-500.0,0.00019171,2]
[348979329,1736911870299,-500.0,0.00019171,2]
[348979330,1736911870315,-500.0,0.00019171,2]
[348979331,1736911870324,-500.0,0.00019171,2]
[348979332,1736911870334,-500.0,0.00019171,2]
[348979333,1736911870344,-500.0,0.00019178,2]
[348979334,1736911870355,-500.0,0.00019178,2]
[348979335,1736911870364,-500.0,0.00019178,2]
[348979336,1736911870374,-399.63852332,0.00019178,2]
[348979337,1736911870384,-505.00501078,0.00020136,3]
[348979338,1736911870395,-500.0,0.0002041,3]
[348979339,1736911870405,-218.97430389,0.00020537,3]
[348979340,1736911870414,-199.97677094,0.00020537,3]
[348979341,1736911870423,-500.0,0.00020537,3]
[348979342,1736911870433,-522.19,0.00020537,3]
[348979343,1736911870442,-500.0,0.00020537,3]
[348979344,1736911870451,-510.45428837,0.00020537,3]
[348979345,1736911870461,-500.0,0.00020537,3]
[348979346,1736911870470,-500.0,0.00020537,3]
[348979347,1736911870479,-500.0,0.00020537,3]
[348979348,1736911870489,-500.0,0.00020537,3]
[348979349,1736911870498,-500.0,0.00020537,3]
[348979350,1736911870508,-500.0,0.00020537,3]
[348979351,1736911870517,-500.0,0.00020537,3]
[348979352,1736911870526,-500.0,0.00020537,3]
[348979353,1736911870535,-810.73,0.00020537,3]
[348979354,1736911870545,-500.0,0.00020537,3]
[348979355,1736911870556,-500.0,0.00020537,3]
[348979356,1736911870566,-500.0,0.00020537,3]
[348979357,1736911870575,-791.4,0.00020537,3]
[348979358,1736911870585,-500.0,0.00020537,3]
[348979359,1736911870595,-500.0,0.00020537,3]
[348979360,1736911870604,-500.0,0.00020537,3]
[348979361,1736911870613,-500.0,0.00020537,3]
[348979362,1736911870623,-533.51168514,0.00020537,3]
[348979363,1736911870633,-505.1489807,0.00020537,3]
[348979364,1736911870643,-699.2,0.00020537,3]
[348979365,1736911870653,-500.0,0.00020537,3]
[348979366,1736911870663,-500.0,0.00020537,3]
[348979367,1736911870673,-500.0,0.00020537,3]
[348979368,1736911870682,-4212.25,0.00020537,3]
[348979369,1736911870693,-500.0,0.00020537,3]
[348979370,1736911870703,-500.0,0.00020537,3]
[348979371,1736911870713,-500.0,0.00020537,3]
[348979372,1736911870723,-500.0,0.00020537,3]
[348979373,1736911870733,-2081.23,0.00020537,3]
[348979374,1736911870743,-500.0,0.00020537,3]
[348979375,1736911870753,-500.0,0.00020537,3]
[348979376,1736911870762,-500.0,0.00020537,3]
[348979377,1736911870772,-500.0,0.00020537,3]
[348979378,1736911870782,-500.0,0.00020537,3]
[348979379,1736911870791,-500.0,0.00020537,3]
[348979380,1736911870801,-721.35,0.00020537,3]
[348979381,1736911870814,-500.0,0.00020542,3]
[348979382,1736911870824,-500.0,0.00020542,3]
[348979383,1736911870834,-500.0,0.00020542,3]
[348979384,1736911870843,-500.0,0.00020544,3]
[348979385,1736911870853,-500.0,0.00020544,3]
[348979386,1736911870863,-500.0,0.00020544,3]
[348979387,1736911870873,-500.0,0.00020544,3]
[348979388,1736911870883,-4088.63,0.00020544,3]
[348979389,1736911870893,-500.0,0.00020544,3]
[348979390,1736911870903,-500.0,0.00020544,3]
[348979391,1736911870912,-500.0,0.00020547,3]
[348979392,1736911870923,-500.0,0.00020547,3]
[348979393,1736911870933,-671.94,0.00020547,3]
[348979394,1736911870943,-582.06,0.00020547,3]
[348979395,1736911870953,-500.0,0.00020547,3]
[348979396,1736911870963,-500.0,0.00020547,3]
[348979397,1736911870973,-500.0,0.00020547,3]
[348979398,1736911870982,-305.98874141,0.00020547,3]
[348979399,1736911870992,-342.38101736,0.00020547,3]
[348979400,1736911871002,-1449.66,0.00020547,3]
[348979401,1736911871011,-500.0,0.00020547,3]
[348979402,1736911871021,-500.0,0.00020547,3]
[348979403,1736911871030,-375.24958107,0.00020547,3]
[348979404,1736911871134,-156.39031,0.00019,2]
[348979405,1736911871144,-162.19,0.000191,5]
[348979406,1736911871153,-44.25419957,0.00020547,3]
[348979407,1736911871163,-680.9,0.00020547,3]
[348979408,1736911871174,-585.35515571,0.00020547,3]
[348979409,1736911871183,-511.39507894,0.00020547,3]
[348979410,1736911871192,-5112.05,0.00020547,2]
[348979411,1736911871202,-500.0,0.00020547,2]
[348979412,1736911871212,-952.49,0.00020547,3]
[348979413,1736911871222,-1595.4640563,0.00020547,3]
[348979414,1736911871371,-156.39031,0.00019175,2]
[348979415,1736911871381,-156.39031,0.00019175,2]
[348979416,1736911871391,-156.39031,0.00019175,2]
[348979417,1736911871401,-156.39031,0.00019175,2]
[348979418,1736911871411,-156.39031,0.00019175,2]
[348979419,1736911871421,-156.39031,0.00019175,2]
[348979420,1736911871431,-152.0,0.00019396,2]
[348979421,1736911871442,-1215.0259437,0.00020547,3]
[348979422,1736911871451,-500.0,0.00020547,3]
[348979423,1736911871462,-915.47,0.00020547,3]
[348979424,1736911871471,-509.93509892,0.00020547,3]
[348979425,1736911871481,-1246.12,0.00020547,3]
[348979426,1736911871491,-4762.08,0.00020547,3]
[348979427,1736911871501,-648.65,0.00020547,3]
[348979428,1736911871511,-1674.79,0.00020547,3]
[348979429,1736911871521,-894.14,0.00020547,3]
[348979430,1736911871532,-933.53,0.00020547,3]
[348979431,1736911871542,-500.0,0.00020547,3]
[348979432,1736911871552,-825.71,0.00020547,3]
[348979433,1736911871564,-500.0,0.00020547,3]
[348979434,1736911871575,-532.59,0.00020547,3]
[348979435,1736911871585,-500.0,0.00020547,3]
[348979436,1736911871594,-509.73284338,0.00020547,3]
[348979437,1736911871603,-1865.7,0.00020547,3]
[348979438,1736911871614,-1673.6,0.00020547,3]
[348979439,1736911871623,-431.44512763,0.00020547,3]
[348979440,1736911871634,-1832.83,0.00020547,3]
[348979441,1736911871644,-500.0,0.00020547,3]
[348979442,1736911871654,-500.0,0.00020547,3]
[348979443,1736911871663,-28.43003912,0.00020547,3]
[348979444,1736911871675,-839.79996088,0.00020547,3]
[348979445,1736911871684,-725.7,0.00020547,3]
[348979446,1736911871695,-740.31,0.00020547,3]
[348979447,1736911871704,-18061.88,0.00020547,3]
[348979448,1736911871714,-500.0,0.00020547,3]
[348979449,1736911871724,-259.5100515,0.00020547,3]
[348979450,1736911871736,-692.9599485,0.00020547,3]
[348979451,1736911871746,-1308.88,0.00020547,3]
[348979452,1736911871756,-790.1,0.00020547,3]
[348979453,1736911871766,-752.83,0.00020547,3]
[348979454,1736911871777,-543.94,0.00020547,3]
[348979455,1736911871787,-469.37058578,0.00020547,3]
[348979456,1736911871799,-161.60941422,0.00020547,3]
[348979457,1736911871813,-500.0,0.00020547,3]
[348979458,1736911871823,-466.93461989,0.0002055,2]
[348979460,1736911978039,162.19,0.00015,2]
[348979461,1736912446802,400.0,0.00013973,2]
[348979462,1736912735154,-2065.21730509,0.0001759,2]
[348979464,1736912853140,-501.78350489,0.0001759,2]
[348979468,1736912948094,-2084.8905599,0.0001759,2]
[348979469,1736912948113,-155.26083357,0.0001759,2]
[348979470,1736912948133,-483.53014612,0.0001769,2]
[348979471,1736912948154,-371.96890123,0.0001769,2]
[348979512,1736913033105,-141.51167499,0.0001769,2]
[348979513,1736913033114,-648.5401293,0.00018087,2]
[348979514,1736913033124,-157.0076427,0.000189,2]
[348979515,1736913033135,-125.82803061,0.000189,2]
[348979516,1736913033144,-300.0,0.00018995,2]
[348979517,1736913033153,-6985.36834013,0.00018995,2]
[348979518,1736913033165,-613.315005,0.00018995,2]
[348979786,1736913038759,-8559.33252713,0.00018995,2]
[348979787,1736913038771,-684.98412774,0.00018995,2]
[348979788,1736913038782,-172.80445974,0.00019064,2]
[348979789,1736913038792,-180.0,0.000191,5]
[348979790,1736913038802,-180.0,0.000191,6]
[348979792,1736913038811,-177.80957988,0.000191,2]
[348979794,1736913038820,-635.63299547,0.000191,2]
[348979798,1736913038963,-205.93600455,0.000191,2]
[348979799,1736913038973,-154.41,0.000191,2]
[348979800,1736913038982,-727.9661917,0.00019142,2]
[348979806,1736913041094,-475.88463416,0.00019142,2]
[348979807,1736913041106,-500.0,0.00019161,2]
[348979808,1736913041118,-641.9615987,0.00019161,2]
[348979809,1736913041130,-500.0,0.00019161,2]
[348979810,1736913041141,-500.0,0.00019161,2]
[348979811,1736913041151,-500.0,0.00019161,2]
[348979812,1736913041163,-500.0,0.00019161,2]
[348979813,1736913041175,-334.09726733,0.00019161,2]
[348979814,1736913041186,-641.9615987,0.00019161,2]
[348979815,1736913041196,-500.0,0.00019161,2]
[348979816,1736913041207,-500.0,0.00019161,2]
[348979817,1736913041220,-641.9615987,0.00019161,2]
[348979818,1736913041232,-500.0,0.00019161,2]
[348979819,1736913041244,-500.0,0.00019161,2]
[348979820,1736913041256,-500.0,0.00019161,2]
[348979821,1736913041267,-641.9615987,0.00019161,2]
[348979822,1736913041279,-500.0,0.00019161,2]
[348979823,1736913041291,-500.0,0.00019161,2]
[348979824,1736913041303,-41.88634959,0.00019161,2]
[348979841,1736913046897,-5000.0,0.00018969,2]
[348979843,1736913046907,-458.11365041,0.00019161,2]
[348979845,1736913046917,-500.0,0.00019161,2]
[348979847,1736913046927,-641.9615987,0.00019161,2]
[348979849,1736913046938,-500.0,0.00019161,2]
[348979851,1736913046948,-500.0,0.00019161,2]
[348979853,1736913046958,-308.71916032,0.00019161,2]
[348979855,1736913046968,-500.0,0.00019161,2]
[348979857,1736913046978,-500.0,0.00019161,2]
[348979860,1736913046989,-500.0,0.00019161,2]
[348979862,1736913047000,-641.9615987,0.00019161,2]
[348979864,1736913047010,-500.0,0.00019161,2]
[348979866,1736913047020,-500.0,0.00019161,2]
[348979868,1736913047031,-641.9615987,0.00019161,2]
[348979870,1736913047042,-500.0,0.00019161,2]
[348979872,1736913047051,-500.0,0.00019161,2]
[348979874,1736913047062,-641.9615987,0.00019161,2]
[348979877,1736913047073,-500.0,0.00019161,2]
[348979879,1736913047084,-500.0,0.00019161,2]
[348979881,1736913047094,-500.0,0.00019161,2]
[348979883,1736913047104,-641.9615987,0.00019161,2]
[348979885,1736913047114,-500.0,0.00019161,2]
[348979887,1736913047124,-500.0,0.00019161,2]
[348979889,1736913047135,-500.0,0.00019161,2]
[348979891,1736913047145,-641.9615987,0.00019161,2]
[348979894,1736913047156,-500.0,0.00019161,2]
[348979896,1736913047165,-500.0,0.00019161,2]
[348979899,1736913047185,-500.0,0.00019161,2]
[348979901,1736913047200,-500.0,0.00019161,2]
[348979904,1736913047213,-641.9615987,0.00019161,2]
[348979906,1736913047227,-500.0,0.00019161,2]
[348979909,1736913047240,-500.0,0.00019161,2]
[348979911,1736913047252,-641.9615987,0.00019161,2]
[348979913,1736913047264,-500.0,0.00019161,2]
[348979915,1736913047275,-500.0,0.00019161,2]
[348979918,1736913047286,-641.9615987,0.00019161,2]
[348979920,1736913047298,-500.0,0.00019161,2]
[348979922,1736913047309,-500.0,0.00019161,2]
[348979924,1736913047320,-641.9615987,0.00019161,2]
[348979927,1736913047333,-500.0,0.00019161,2]
[348979929,1736913047345,-641.9615987,0.00019161,2]
[348979931,1736913047356,-179.94543767,0.00019161,2]
[348979933,1736913047367,-500.0,0.00019161,2]
[348979936,1736913047379,-500.0,0.00019161,2]
[348979938,1736913047390,-641.9615987,0.00019161,2]
[348979940,1736913047402,-500.0,0.00019161,2]
[348979943,1736913047413,-500.0,0.00019161,2]
[348979945,1736913047425,-500.0,0.00019161,2]
[348979947,1736913047436,-641.9615987,0.00019161,2]
[348979949,1736913047448,-500.0,0.00019161,2]
[348979951,1736913047459,-500.0,0.00019161,2]
[348979953,1736913047470,-641.9615987,0.00019161,2]
[348979956,1736913047481,-500.0,0.00019161,2]
[348979958,1736913047492,-641.9615987,0.00019161,2]
[348979960,1736913047502,-500.0,0.00019161,2]
[348979962,1736913047511,-500.0,0.00019161,2]
[348979964,1736913047522,-500.0,0.00019161,2]
[348979966,1736913047531,-641.9615987,0.00019161,2]
[348979968,1736913047543,-500.0,0.00019161,2]
[348979970,1736913047553,-641.9615987,0.00019161,2]
[348979991,1736913047750,-500.0,0.00019161,2]
[348979994,1736913047762,-500.0,0.00019161,2]
[348979996,1736913047774,-641.9615987,0.00019161,2]
[348979998,1736913047784,-473.18414789,0.00019161,2]
[348980000,1736913047793,-641.9615987,0.00019161,2]
[348980002,1736913047803,-500.0,0.00019161,2]
[348980004,1736913047813,-500.0,0.00019161,2]
[348980006,1736913047822,-641.9615987,0.00019161,2]
[348980008,1736913047833,-500.0,0.00019161,2]
[348980010,1736913047842,-500.0,0.00019161,2]
[348980012,1736913047852,-641.9615987,0.00019161,2]
[348980014,1736913047862,-500.0,0.00019161,2]
[348980016,1736913047872,-641.9615987,0.00019161,2]
[348980018,1736913047881,-500.0,0.00019161,2]
[348980020,1736913047890,-641.9615987,0.00019161,2]
[348980022,1736913047899,-641.9615987,0.00019161,2]
[348980024,1736913047909,-641.9615987,0.00019161,2]
[348980026,1736913047918,-500.0,0.00019161,2]
[348980028,1736913047926,-641.9615987,0.00019161,2]
[348980030,1736913047937,-500.0,0.00019161,2]
[348980032,1736913047949,-641.9615987,0.00019161,2]
[348980034,1736913047959,-641.9615987,0.00019161,2]
[348980037,1736913047969,-641.9615987,0.00019161,2]
[348980039,1736913047979,-641.9615987,0.00019161,2]
[348980041,1736913047989,-641.9615987,0.00019161,2]
[348980043,1736913047999,-641.9615987,0.00019161,2]
[348980045,1736913048009,-641.9615987,0.00019161,2]
[348980047,1736913048019,-641.9615987,0.00019161,2]
[348980049,1736913048029,-641.9615987,0.00019161,2]
[348980051,1736913048038,-641.9615987,0.00019161,2]
[348980053,1736913048047,-641.9615987,0.00019161,2]
[348980055,1736913048057,-641.9615987,0.00019161,2]
[348980057,1736913048067,-641.9615987,0.00019161,2]
[348980059,1736913048076,-641.9615987,0.00019161,2]
[348980061,1736913048087,-580.79839407,0.00019161,2]
[348980063,1736913048096,-151.0,0.00019166,2]
[348980065,1736913048106,-500.0,0.00019173,2]
[348980067,1736913048115,-500.0,0.00019173,2]
[348980069,1736913048124,-500.63715165,0.00019173,2]
[348980071,1736913048133,-500.0,0.00019173,2]
[348980073,1736913048143,-500.0,0.00019173,2]
[348980075,1736913048152,-191.11864215,0.00019177,2]
[348980077,1736913048162,-225.05833627,0.00019177,2]
[348980079,1736913048172,-500.0,0.00019177,2]
[348980081,1736913048181,-477.79146935,0.00019177,2]
[348980083,1736913048190,-503.46019868,0.00019178,2]
[348980085,1736913048199,-500.0,0.00019178,2]
[348980087,1736913048208,-500.0,0.00019178,2]
[348980089,1736913048217,-500.0,0.00019178,2]
[348980091,1736913048226,-500.0,0.00019178,2]
[348980093,1736913048235,-295.33421404,0.00019178,2]
[348980095,1736913048244,-500.0,0.00019178,2]
[348980097,1736913048254,-500.0,0.00019178,2]
[348980099,1736913048263,-506.67583204,0.00019178,2]
[348980101,1736913048273,-500.0,0.00019178,2]
[348980103,1736913048283,-500.0,0.00019178,2]
[348980105,1736913048292,-504.47171601,0.00019178,2]
[348980107,1736913048302,-508.19055629,0.00019178,2]
[348980109,1736913048311,-505.69024853,0.00019178,2]
[348980111,1736913048320,-503.6929043,0.00019178,2]
[348980113,1736913048330,-500.0,0.00019178,2]
[348980115,1736913048340,-413.51298647,0.00019178,2]
[348980117,1736913048349,-492.11303616,0.00019178,2]
[348980119,1736913048358,-500.0,0.00019178,2]
[348980121,1736913048368,-502.67475658,0.00019178,2]
[348980123,1736913048378,-505.7885084,0.00019178,2]
[348980125,1736913048387,-500.0,0.00019178,2]
[348980127,1736913048396,-500.0,0.00019178,2]
[348980129,1736913048406,-502.75365871,0.00019178,2]
[348980131,1736913048415,-500.0,0.00019178,2]
[348980134,1736913048425,-500.0,0.00019178,2]
[348980136,1736913048434,-500.0,0.00019178,2]
[348980138,1736913048443,-508.97161435,0.00019178,2]
[348980140,1736913048453,-505.74863353,0.00019178,2]
[348980142,1736913048462,-500.0,0.00019178,2]
[348980144,1736913048472,-518.04609401,0.00019178,2]
[348980146,1736913048481,-500.0,0.00019178,2]
[348980148,1736913048491,-190.50048245,0.00019178,2]
[348980150,1736913048501,-500.0,0.00019178,2]
[348980152,1736913048511,-500.0,0.00019178,2]
[348980154,1736913048520,-500.0,0.00019178,2]
[348980156,1736913048530,-500.0,0.00019178,2]
[348980158,1736913048539,-574.37,0.00019178,2]
[348980160,1736913048549,-500.0,0.00019178,2]
[348980162,1736913048558,-500.0,0.00019178,2]
[348980164,1736913048568,-500.0,0.00019178,2]
[348980166,1736913048577,-500.0,0.00019178,2]
[348980168,1736913048586,-500.0,0.00019178,2]
[348980170,1736913048596,-500.0,0.00019178,2]
[348980172,1736913048606,-500.0,0.00019178,2]
[348980174,1736913048615,-392.51603865,0.00019178,2]
[348980176,1736913048624,-419.47509675,0.00019178,2]
[348980178,1736913048634,-500.0,0.00019178,2]
[348980180,1736913048643,-500.0,0.00019178,2]
[348980182,1736913048653,-525.56919864,0.00019178,2]
[348980184,1736913048663,-500.0,0.00019178,2]
[348980186,1736913048672,-514.67590185,0.00019178,2]
[348980188,1736913048682,-500.0,0.00019178,2]
[348980190,1736913048692,-500.0,0.00019178,2]
[348980192,1736913048705,-500.0,0.00019178,2]
[348980194,1736913048714,-500.0,0.00019178,2]
[348980196,1736913048725,-500.0,0.00019178,2]
[348980198,1736913048734,-500.0,0.00019178,2]
[348980201,1736913048746,-500.0,0.00019178,2]
[348980203,1736913048756,-500.0,0.00019178,2]
[348980205,1736913048766,-500.0,0.00019178,2]
[348980206,1736913048777,-500.0,0.00019178,2]
[348980209,1736913048786,-594.53056671,0.00019178,2]
[348980211,1736913048796,-500.0,0.00019178,2]
[348980213,1736913048805,-500.0,0.00019178,2]
[348980215,1736913048814,-500.0,0.00019178,2]
[348980217,1736913048824,-500.0,0.00019178,2]
[348980219,1736913048833,-506.22123366,0.00019178,2]
[348980221,1736913048842,-500.0,0.00019178,2]
[348980222,1736913048853,-500.0,0.00019178,2]
[348980225,1736913048863,-500.0,0.00019178,2]
[348980227,1736913048873,-797.86,0.00019178,2]